[Event "Titled Tuesday Blitz August 22 Late 2023"]
[White "Shapiro, Viktor"]
[Black "Romero Ruscalleda, Josep"]
[WhiteFideId "4175700"]
[BlackFideId "2231859"]
[WhiteElo "2537"]
[BlackElo "2406"]
[Result "1-0"]
[Round "6"]
[TimeControl "180+1"]
[Date "2023.08.22"]
[WhiteClock "0:00:15"]
[BlackClock "0:00:00"]
[Board "114"]

1. c4 {[%clk 0:03:00]}  g6 {[%clk 0:03:00]} 2. Nc3 {[%clk 0:03:01]}  Bg7 {[%clk 0:03:00]} 3. Nf3 {[%clk 0:03:00]}  d6 {[%clk 0:03:01]} 4. d4 {[%clk 0:03:01]}  Nf6 {[%clk 0:02:59]} 5. Bg5 {[%clk 0:03:01]}  O-O {[%clk 0:02:59]} 6. e3 {[%clk 0:03:01]}  Nc6 {[%clk 0:02:58]} 7. Be2 {[%clk 0:03:01]}  Bf5 {[%clk 0:02:56]} 8. h3 {[%clk 0:03:00]}  Ne4 {[%clk 0:02:55]} 9. Bh4 {[%clk 0:03:00]}  Nxc3 {[%clk 0:02:53]} 10. bxc3 {[%clk 0:03:00]}  d5 {[%clk 0:02:51]} 11. cxd5 {[%clk 0:02:53]}  Qxd5 {[%clk 0:02:50]} 12. O-O {[%clk 0:02:53]}  e5 {[%clk 0:02:44]} 13. Qb3 {[%clk 0:02:38]}  Qxb3 {[%clk 0:02:41]} 14. axb3 {[%clk 0:02:38]}  exd4 {[%clk 0:02:41]} 15. cxd4 {[%clk 0:02:33]}  a6 {[%clk 0:02:32]} 16. Rfc1 {[%clk 0:02:32]}  Rac8 {[%clk 0:02:30]} 17. Bg3 {[%clk 0:02:31]}  Rfe8 {[%clk 0:02:19]} 18. Bxa6 {[%clk 0:02:30]}  Nxd4 {[%clk 0:02:14]} 19. Bxb7 {[%clk 0:02:18]}  Ne2+ {[%clk 0:02:08]} 20. Kh2 {[%clk 0:02:17]}  Rb8 {[%clk 0:01:59]} 21. Bd5 {[%clk 0:02:05]}  Nxg3 {[%clk 0:01:45]} 22. Kxg3 {[%clk 0:02:05]}  Bxa1 {[%clk 0:01:44]} 23. Rxa1 {[%clk 0:02:05]}  Be4 {[%clk 0:01:42]} 24. Bc4 {[%clk 0:02:03]}  Bxf3 {[%clk 0:01:38]} 25. Kxf3 {[%clk 0:02:01]}  Kg7 {[%clk 0:01:38]} 26. Ra7 {[%clk 0:01:58]}  Re7 {[%clk 0:01:38]} 27. g4 {[%clk 0:01:57]}  h6 {[%clk 0:01:37]} 28. h4 {[%clk 0:01:56]}  Rb6 {[%clk 0:01:37]} 29. Kg3 {[%clk 0:01:53]}  Rd6 {[%clk 0:01:33]} 30. Ra5 {[%clk 0:01:40]}  Rd2 {[%clk 0:01:32]} 31. Rc5 {[%clk 0:01:37]}  Kf8 {[%clk 0:01:27]} 32. Kf3 {[%clk 0:01:34]}  Ke8 {[%clk 0:01:26]} 33. h5 {[%clk 0:01:33]}  g5 {[%clk 0:01:21]} 34. Rf5 {[%clk 0:01:29]}  Rd6 {[%clk 0:01:18]} 35. Ke2 {[%clk 0:01:26]}  f6 {[%clk 0:01:15]} 36. f3 {[%clk 0:01:24]}  Re5 {[%clk 0:01:13]} 37. Bd3 {[%clk 0:01:04]}  Rxf5 {[%clk 0:01:10]} 38. Bxf5 {[%clk 0:01:04]}  Ke7 {[%clk 0:01:08]} 39. Bd3 {[%clk 0:01:03]}  Kd7 {[%clk 0:01:07]} 40. f4 {[%clk 0:01:00]}  Kc6 {[%clk 0:01:05]} 41. Bc4 {[%clk 0:00:58]}  Kc5 {[%clk 0:01:03]} 42. Kf3 {[%clk 0:00:56]}  Kb4 {[%clk 0:00:50]} 43. Ke4 {[%clk 0:00:56]}  c5 {[%clk 0:00:50]} 44. Kf5 {[%clk 0:00:56]}  Kc3 {[%clk 0:00:48]} 45. Be6 {[%clk 0:00:47]}  gxf4 {[%clk 0:00:41]} 46. exf4 {[%clk 0:00:47]}  Rxe6 {[%clk 0:00:30]} 47. Kxe6 {[%clk 0:00:47]}  Kxb3 {[%clk 0:00:31]} 48. g5 {[%clk 0:00:38]}  c4 {[%clk 0:00:28]} 49. g6 {[%clk 0:00:27]}  c3 {[%clk 0:00:28]} 50. g7 {[%clk 0:00:28]}  c2 {[%clk 0:00:29]} 51. g8=Q {[%clk 0:00:28]}  c1=Q {[%clk 0:00:29]} 52. Kxf6+ {[%clk 0:00:26]}  Kb4 {[%clk 0:00:29]} 53. Qb8+ {[%clk 0:00:26]}  Ka5 {[%clk 0:00:28]} 54. Qe5+ {[%clk 0:00:25]}  Ka6 {[%clk 0:00:27]} 55. Kg6 {[%clk 0:00:25]}  Ka7 {[%clk 0:00:24]} 56. Kxh6 {[%clk 0:00:24]}  Qc2 {[%clk 0:00:23]} 57. f5 {[%clk 0:00:22]}  Qd2+ {[%clk 0:00:23]} 58. Kg6 {[%clk 0:00:21]}  Qg2+ {[%clk 0:00:23]} 59. Kf7 {[%clk 0:00:20]}  Qa2+ {[%clk 0:00:21]} 60. Qe6 {[%clk 0:00:20]}  Qc2 {[%clk 0:00:18]} 61. h6 {[%clk 0:00:20]}  Qh2 {[%clk 0:00:18]} 62. Kg7 {[%clk 0:00:19]}  Qg3+ {[%clk 0:00:17]} 63. Qg6 {[%clk 0:00:20]}  Qc3+ {[%clk 0:00:17]} 64. f6 {[%clk 0:00:19]}  Kb8 {[%clk 0:00:14]} 65. h7 {[%clk 0:00:19]}  Kc7 {[%clk 0:00:14]} 66. Qf7+ {[%clk 0:00:19]}  Kd6 {[%clk 0:00:13]} 67. Qe7+ {[%clk 0:00:19]}  Kd5 {[%clk 0:00:12]} 68. h8=Q {[%clk 0:00:20]}  Qg3+ {[%clk 0:00:12]} 69. Kf8 {[%clk 0:00:20]}  Qb8+ {[%clk 0:00:10]} 70. Kf7 {[%clk 0:00:20]}  Qxh8 {[%clk 0:00:10]} 71. Qe6+ {[%clk 0:00:20]}  Kd4 {[%clk 0:00:09]} 72. Qg4+ {[%clk 0:00:19]}  Kd5 {[%clk 0:00:09]} 73. Qf5+ {[%clk 0:00:19]}  Kd6 {[%clk 0:00:08]} 74. Qd3+ {[%clk 0:00:18]}  Kc6 {[%clk 0:00:08]} 75. Qe4+ {[%clk 0:00:17]}  Kd6 {[%clk 0:00:08]} 76. Qe6+ {[%clk 0:00:18]}  Kc5 {[%clk 0:00:08]} 77. Ke7 {[%clk 0:00:17]}  Qh4 {[%clk 0:00:05]} 78. Qd6+ {[%clk 0:00:16]}  Kc4 {[%clk 0:00:05]} 79. Qe5 {[%clk 0:00:16]}  Kb3 {[%clk 0:00:02]} 80. Kd6 {[%clk 0:00:14]}  Qb4+ {[%clk 0:00:00]} 81. Ke6 {[%clk 0:00:15]} 1-0


[Site "https://www.chess.com"]

[Event "Titled Tuesday Blitz August 22 Late 2023"]
[White "Jovic, Stanoje"]
[Black "Melikhov, Evgeny V."]
[WhiteFideId "905020"]
[BlackFideId "4122046"]
[WhiteElo "2523"]
[BlackElo "2392"]
[Result "1-0"]
[Round "6"]
[TimeControl "180+1"]
[Date "2023.08.22"]
[WhiteClock "0:00:52"]
[BlackClock "0:00:45"]
[Board "117"]

1. c4 {[%clk 0:03:00]}  e5 {[%clk 0:02:58]} 2. g3 {[%clk 0:03:00]}  d6 {[%clk 0:02:57]} 3. Bg2 {[%clk 0:03:00]}  f5 {[%clk 0:02:57]} 4. Nc3 {[%clk 0:02:59]}  Nf6 {[%clk 0:02:57]} 5. Nf3 {[%clk 0:02:58]}  Be7 {[%clk 0:02:56]} 6. d4 {[%clk 0:02:58]}  e4 {[%clk 0:02:55]} 7. Ng5 {[%clk 0:02:58]}  c6 {[%clk 0:02:49]} 8. h4 {[%clk 0:02:57]}  O-O {[%clk 0:02:48]} 9. d5 {[%clk 0:02:56]}  Na6 {[%clk 0:02:42]} 10. O-O {[%clk 0:02:51]}  Nc7 {[%clk 0:02:41]} 11. f3 {[%clk 0:02:36]}  exf3 {[%clk 0:02:39]} 12. exf3 {[%clk 0:02:34]}  cxd5 {[%clk 0:02:38]} 13. cxd5 {[%clk 0:02:33]}  h6 {[%clk 0:02:32]} 14. Nh3 {[%clk 0:02:32]}  Qe8 {[%clk 0:02:22]} 15. Re1 {[%clk 0:02:28]}  Qf7 {[%clk 0:02:22]} 16. Nf4 {[%clk 0:02:21]}  g5 {[%clk 0:02:14]} 17. hxg5 {[%clk 0:02:20]}  hxg5 {[%clk 0:02:14]} 18. Ng6 {[%clk 0:02:19]}  Qxg6 {[%clk 0:02:07]} 19. Rxe7 {[%clk 0:02:18]}  Rf7 {[%clk 0:02:06]} 20. Rxf7 {[%clk 0:02:18]}  Qxf7 {[%clk 0:02:06]} 21. Bxg5 {[%clk 0:02:16]}  Nfxd5 {[%clk 0:02:06]} 22. Qd4 {[%clk 0:01:58]}  Nxc3 {[%clk 0:02:03]} 23. Qxc3 {[%clk 0:01:53]}  Be6 {[%clk 0:01:58]} 24. Re1 {[%clk 0:01:49]}  Rc8 {[%clk 0:01:51]} 25. Qb4 {[%clk 0:01:46]}  Ne8 {[%clk 0:01:44]} 26. b3 {[%clk 0:01:34]}  Rc2 {[%clk 0:01:41]} 27. Qa4 {[%clk 0:01:24]}  a6 {[%clk 0:01:36]} 28. Bf4 {[%clk 0:01:23]}  Bd7 {[%clk 0:01:05]} 29. Qa5 {[%clk 0:01:14]}  Bc6 {[%clk 0:01:03]} 30. Qd8 {[%clk 0:01:07]}  Kh7 {[%clk 0:00:58]} 31. Re7 {[%clk 0:01:05]}  Qxe7 {[%clk 0:00:52]} 32. Qxe7+ {[%clk 0:01:04]}  Kg6 {[%clk 0:00:47]} 33. Qe6+ {[%clk 0:00:58]}  Nf6 {[%clk 0:00:47]} 34. Bxd6 {[%clk 0:00:54]}  Kg7 {[%clk 0:00:45]} 35. Be5 {[%clk 0:00:52]} 1-0


[Site "https://www.chess.com"]

[Event "Titled Tuesday Blitz August 22 Late 2023"]
[White "Seresin, Francesco"]
[Black "Janaszak, Dawid"]
[WhiteFideId "886335"]
[BlackFideId "1119206"]
[WhiteElo "2376"]
[BlackElo "2506"]
[Result "0-1"]
[Round "6"]
[TimeControl "180+1"]
[Date "2023.08.22"]
[WhiteClock "0:00:12"]
[BlackClock "0:00:42"]
[Board "120"]

1. d4 {[%clk 0:03:00]}  Nf6 {[%clk 0:02:58]} 2. c4 {[%clk 0:03:00]}  d6 {[%clk 0:02:54]} 3. Nf3 {[%clk 0:02:59]}  g6 {[%clk 0:02:53]} 4. g3 {[%clk 0:03:00]}  Bg7 {[%clk 0:02:51]} 5. Bg2 {[%clk 0:03:00]}  O-O {[%clk 0:02:51]} 6. Nc3 {[%clk 0:03:00]}  Nc6 {[%clk 0:02:50]} 7. O-O {[%clk 0:03:01]}  a6 {[%clk 0:02:50]} 8. d5 {[%clk 0:03:01]}  Na5 {[%clk 0:02:49]} 9. b3 {[%clk 0:03:02]}  c5 {[%clk 0:02:49]} 10. dxc6 {[%clk 0:03:02]}  Nxc6 {[%clk 0:02:47]} 11. Bb2 {[%clk 0:03:02]}  Bf5 {[%clk 0:02:45]} 12. Nd4 {[%clk 0:03:00]}  Bd7 {[%clk 0:02:43]} 13. Rc1 {[%clk 0:02:59]}  Qa5 {[%clk 0:02:39]} 14. Qd2 {[%clk 0:02:54]}  Qh5 {[%clk 0:02:32]} 15. Nxc6 {[%clk 0:02:24]}  bxc6 {[%clk 0:02:33]} 16. Ne4 {[%clk 0:01:59]}  Bg4 {[%clk 0:01:56]} 17. Nxf6+ {[%clk 0:01:56]}  Bxf6 {[%clk 0:01:44]} 18. Bxf6 {[%clk 0:01:56]}  exf6 {[%clk 0:01:45]} 19. Bxc6 {[%clk 0:01:45]}  Bxe2 {[%clk 0:01:41]} 20. Bxa8 {[%clk 0:01:44]}  Rxa8 {[%clk 0:01:40]} 21. Rfe1 {[%clk 0:01:30]}  Bf3 {[%clk 0:01:37]} 22. Re3 {[%clk 0:01:29]}  Bb7 {[%clk 0:01:33]} 23. Qxd6 {[%clk 0:01:09]}  Kg7 {[%clk 0:01:31]} 24. c5 {[%clk 0:01:06]}  Bc8 {[%clk 0:00:50]} 25. c6 {[%clk 0:01:03]}  Bg4 {[%clk 0:00:47]} 26. c7 {[%clk 0:00:52]}  Rc8 {[%clk 0:00:47]} 27. Rc6 {[%clk 0:00:40]}  Qf5 {[%clk 0:00:45]} 28. Kg2 {[%clk 0:00:19]}  Bh3+ {[%clk 0:00:45]} 29. Kg1 {[%clk 0:00:12]}  Qb1+ {[%clk 0:00:42]} 0-1


[Site "https://www.chess.com"]

[Event "Titled Tuesday Blitz August 22 Late 2023"]
[White "Filgueiras, Nathan Felipe"]
[Black "Baghdasaryan, Vahe"]
[WhiteFideId "2188562"]
[BlackFideId "13303139"]
[WhiteElo "2499"]
[BlackElo "2368"]
[Result "1-0"]
[Round "6"]
[TimeControl "180+1"]
[Date "2023.08.22"]
[WhiteClock "0:00:39"]
[BlackClock "0:00:18"]
[Board "122"]

1. e4 {[%clk 0:03:00]}  e5 {[%clk 0:02:59]} 2. Nf3 {[%clk 0:03:00]}  Nc6 {[%clk 0:02:58]} 3. Nc3 {[%clk 0:02:58]}  Nf6 {[%clk 0:02:57]} 4. Be2 {[%clk 0:02:59]}  Bb4 {[%clk 0:02:55]} 5. Nd5 {[%clk 0:02:54]}  Nxd5 {[%clk 0:02:55]} 6. exd5 {[%clk 0:02:52]}  Nd4 {[%clk 0:02:55]} 7. c3 {[%clk 0:02:31]}  Nxf3+ {[%clk 0:02:42]} 8. Bxf3 {[%clk 0:02:32]}  Be7 {[%clk 0:02:42]} 9. O-O {[%clk 0:02:28]}  f5 {[%clk 0:02:37]} 10. Re1 {[%clk 0:02:20]}  d6 {[%clk 0:02:37]} 11. d4 {[%clk 0:02:10]}  e4 {[%clk 0:02:37]} 12. Be2 {[%clk 0:02:11]}  O-O {[%clk 0:02:36]} 13. f3 {[%clk 0:02:12]}  exf3 {[%clk 0:02:24]} 14. Bxf3 {[%clk 0:02:11]}  Bg5 {[%clk 0:02:19]} 15. Qd3 {[%clk 0:02:09]}  Bxc1 {[%clk 0:02:07]} 16. Raxc1 {[%clk 0:02:10]}  Qg5 {[%clk 0:02:07]} 17. Qe3 {[%clk 0:01:48]}  f4 {[%clk 0:02:05]} 18. Qe7 {[%clk 0:01:45]}  Qxe7 {[%clk 0:01:58]} 19. Rxe7 {[%clk 0:01:46]}  Rf7 {[%clk 0:01:58]} 20. Re8+ {[%clk 0:01:43]}  Rf8 {[%clk 0:01:58]} 21. Rce1 {[%clk 0:01:43]}  Bf5 {[%clk 0:01:46]} 22. Rxa8 {[%clk 0:01:40]}  Rxa8 {[%clk 0:01:46]} 23. Re7 {[%clk 0:01:05]}  Rc8 {[%clk 0:01:44]} 24. Bh5 {[%clk 0:01:05]}  g6 {[%clk 0:01:37]} 25. Bf3 {[%clk 0:01:02]}  g5 {[%clk 0:01:22]} 26. Bh5 {[%clk 0:01:01]}  b6 {[%clk 0:00:56]} 27. Kf2 {[%clk 0:01:00]}  a5 {[%clk 0:00:51]} 28. Kf3 {[%clk 0:00:58]}  Bb1 {[%clk 0:00:45]} 29. a3 {[%clk 0:00:52]}  Bc2 {[%clk 0:00:38]} 30. Bg4 {[%clk 0:00:48]}  Kf8 {[%clk 0:00:33]} 31. Re2 {[%clk 0:00:33]}  h5 {[%clk 0:00:18]} 32. Bxc8 {[%clk 0:00:32]}  Bd1 {[%clk 0:00:18]} 33. Kf2 {[%clk 0:00:31]}  Bxe2 {[%clk 0:00:18]} 34. Kxe2 {[%clk 0:00:32]}  Ke7 {[%clk 0:00:18]} 35. Kf3 {[%clk 0:00:32]}  Kf6 {[%clk 0:00:19]} 36. h4 {[%clk 0:00:32]}  Kg6 {[%clk 0:00:17]} 37. hxg5 {[%clk 0:00:31]}  Kxg5 {[%clk 0:00:18]} 38. Bh3 {[%clk 0:00:31]}  h4 {[%clk 0:00:18]} 39. Bd7 {[%clk 0:00:31]}  h3 {[%clk 0:00:10]} 40. gxh3 {[%clk 0:00:31]}  Kh4 {[%clk 0:00:11]} 41. Kxf4 {[%clk 0:00:32]}  Kh5 {[%clk 0:00:10]} 42. Kf5 {[%clk 0:00:31]}  Kh4 {[%clk 0:00:11]} 43. Kf6 {[%clk 0:00:31]}  Kh5 {[%clk 0:00:12]} 44. Ke7 {[%clk 0:00:32]}  Kh4 {[%clk 0:00:13]} 45. Kd8 {[%clk 0:00:32]}  Kh5 {[%clk 0:00:14]} 46. Kxc7 {[%clk 0:00:33]}  Kh4 {[%clk 0:00:15]} 47. Kxd6 {[%clk 0:00:34]}  Kh5 {[%clk 0:00:16]} 48. Kc7 {[%clk 0:00:35]}  Kh4 {[%clk 0:00:17]} 49. Bg4 {[%clk 0:00:35]}  Kg5 {[%clk 0:00:16]} 50. d6 {[%clk 0:00:36]}  Kh4 {[%clk 0:00:17]} 51. d7 {[%clk 0:00:37]}  Kg5 {[%clk 0:00:18]} 52. d8=Q+ {[%clk 0:00:37]}  Kf4 {[%clk 0:00:18]} 53. Qf6+ {[%clk 0:00:38]}  Kg3 {[%clk 0:00:19]} 54. Qf3+ {[%clk 0:00:37]}  Kh4 {[%clk 0:00:20]} 55. Qf4 {[%clk 0:00:37]}  b5 {[%clk 0:00:18]} 56. Bf5+ {[%clk 0:00:37]}  Kh5 {[%clk 0:00:18]} 57. Qg4+ {[%clk 0:00:38]}  Kh6 {[%clk 0:00:18]} 58. Qg6# {[%clk 0:00:39]} 1-0


[Site "https://www.chess.com"]

[Event "Titled Tuesday Blitz August 22 Late 2023"]
[White "Urbina Perez, Juan Antonio"]
[Black "KorolDimitriy75"]
[WhiteFideId "2217368"]
[WhiteElo "2484"]
[BlackElo "2358"]
[Result "1-0"]
[Round "6"]
[TimeControl "180+1"]
[Date "2023.08.22"]
[WhiteClock "0:01:53"]
[BlackClock "0:00:00"]
[Board "124"]

1. c4 {[%clk 0:02:52]}  c5 {[%clk 0:03:00]} 2. g3 {[%clk 0:02:53]}  g6 {[%clk 0:03:00]} 3. Bg2 {[%clk 0:02:53]}  Bg7 {[%clk 0:03:00]} 4. Nf3 {[%clk 0:02:53]}  Nc6 {[%clk 0:03:01]} 5. O-O {[%clk 0:02:53]}  Nh6 {[%clk 0:03:00]} 6. Nc3 {[%clk 0:02:52]}  Nf5 {[%clk 0:03:00]} 7. Rb1 {[%clk 0:02:50]}  a6 {[%clk 0:02:59]} 8. e3 {[%clk 0:02:47]}  Rb8 {[%clk 0:02:57]} 9. a4 {[%clk 0:02:45]}  d6 {[%clk 0:02:55]} 10. Ne2 {[%clk 0:02:33]}  e5 {[%clk 0:02:31]} 11. b3 {[%clk 0:02:24]}  O-O {[%clk 0:02:22]} 12. Bb2 {[%clk 0:02:24]}  e4 {[%clk 0:02:05]} 13. Ne1 {[%clk 0:02:20]}  Bxb2 {[%clk 0:01:37]} 14. Rxb2 {[%clk 0:02:21]}  Re8 {[%clk 0:01:37]} 15. d3 {[%clk 0:02:18]}  exd3 {[%clk 0:01:11]} 16. Nxd3 {[%clk 0:02:19]}  Bd7 {[%clk 0:01:05]} 17. Nef4 {[%clk 0:02:16]}  b5 {[%clk 0:00:58]} 18. axb5 {[%clk 0:02:14]}  axb5 {[%clk 0:00:59]} 19. Nd5 {[%clk 0:02:11]}  Ne5 {[%clk 0:00:37]} 20. Rc2 {[%clk 0:02:04]}  bxc4 {[%clk 0:00:33]} 21. bxc4 {[%clk 0:02:04]}  Ba4 {[%clk 0:00:32]} 22. Qd2 {[%clk 0:01:55]}  Bxc2 {[%clk 0:00:26]} 23. Qxc2 {[%clk 0:01:56]}  Nxd3 {[%clk 0:00:15]} 24. Qxd3 {[%clk 0:01:57]}  f6 {[%clk 0:00:07]} 25. Qc3 {[%clk 0:01:55]}  Kg7 {[%clk 0:00:07]} 26. g4 {[%clk 0:01:55]}  Nh4 {[%clk 0:00:00]} 27. g5 {[%clk 0:01:53]} 1-0


[Site "https://www.chess.com"]

[Event "Titled Tuesday Blitz August 22 Late 2023"]
[White "Michalczak, Thomas"]
[Black "Han, Yichen"]
[WhiteFideId "4622634"]
[BlackFideId "1054430"]
[WhiteElo "2481"]
[BlackElo "2353"]
[Result "1/2-1/2"]
[Round "6"]
[TimeControl "180+1"]
[Date "2023.08.22"]
[WhiteClock "0:00:25"]
[BlackClock "0:00:19"]
[Board "125"]

1. e4 {[%clk 0:03:00]}  e5 {[%clk 0:02:55]} 2. Nf3 {[%clk 0:03:00]}  Nc6 {[%clk 0:02:55]} 3. Bb5 {[%clk 0:03:00]}  a6 {[%clk 0:02:55]} 4. Ba4 {[%clk 0:03:00]}  b5 {[%clk 0:02:56]} 5. Bb3 {[%clk 0:03:00]}  Na5 {[%clk 0:02:57]} 6. O-O {[%clk 0:02:56]}  d6 {[%clk 0:02:56]} 7. d4 {[%clk 0:02:49]}  exd4 {[%clk 0:02:57]} 8. c3 {[%clk 0:02:49]}  Nxb3 {[%clk 0:02:54]} 9. axb3 {[%clk 0:02:48]}  Nf6 {[%clk 0:02:48]} 10. Re1 {[%clk 0:02:46]}  Be7 {[%clk 0:02:48]} 11. cxd4 {[%clk 0:02:46]}  O-O {[%clk 0:02:48]} 12. Nc3 {[%clk 0:02:46]}  Bb7 {[%clk 0:02:48]} 13. b4 {[%clk 0:02:42]}  d5 {[%clk 0:02:45]} 14. e5 {[%clk 0:02:40]}  Ne4 {[%clk 0:02:45]} 15. Qb3 {[%clk 0:02:23]}  Qd7 {[%clk 0:02:45]} 16. h3 {[%clk 0:02:11]}  Kh8 {[%clk 0:02:37]} 17. Be3 {[%clk 0:02:11]}  f6 {[%clk 0:02:36]} 18. exf6 {[%clk 0:02:10]}  Bxf6 {[%clk 0:02:37]} 19. Rad1 {[%clk 0:02:08]}  Rae8 {[%clk 0:02:36]} 20. Nxe4 {[%clk 0:01:57]}  dxe4 {[%clk 0:02:36]} 21. Ne5 {[%clk 0:01:57]}  Qd5 {[%clk 0:02:11]} 22. Qxd5 {[%clk 0:01:54]}  Bxd5 {[%clk 0:02:12]} 23. Nd7 {[%clk 0:01:53]}  Rf7 {[%clk 0:02:10]} 24. Nxf6 {[%clk 0:01:53]}  Rxf6 {[%clk 0:02:11]} 25. Rc1 {[%clk 0:01:50]}  c6 {[%clk 0:02:09]} 26. Ra1 {[%clk 0:01:48]}  Ra8 {[%clk 0:02:08]} 27. Ra3 {[%clk 0:01:47]}  Rf7 {[%clk 0:02:00]} 28. Rea1 {[%clk 0:01:46]}  Rfa7 {[%clk 0:02:00]} 29. Bf4 {[%clk 0:01:44]}  Kg8 {[%clk 0:01:28]} 30. Bd6 {[%clk 0:01:43]}  Kf7 {[%clk 0:01:17]} 31. Bc5 {[%clk 0:01:43]}  Rd7 {[%clk 0:01:18]} 32. Rxa6 {[%clk 0:01:43]}  Rxa6 {[%clk 0:01:19]} 33. Rxa6 {[%clk 0:01:43]}  Ke6 {[%clk 0:01:20]} 34. Ra8 {[%clk 0:01:42]}  Rf7 {[%clk 0:01:01]} 35. Re8+ {[%clk 0:01:38]}  Kd7 {[%clk 0:00:59]} 36. Re5 {[%clk 0:01:35]}  g6 {[%clk 0:00:53]} 37. Kf1 {[%clk 0:01:25]}  Bc4+ {[%clk 0:00:54]} 38. Ke1 {[%clk 0:01:24]}  Bd5 {[%clk 0:00:54]} 39. Ke2 {[%clk 0:01:19]}  Bc4+ {[%clk 0:00:49]} 40. Ke3 {[%clk 0:01:19]}  Bd5 {[%clk 0:00:50]} 41. h4 {[%clk 0:01:14]}  Rg7 {[%clk 0:00:48]} 42. Bf8 {[%clk 0:00:56]}  Rf7 {[%clk 0:00:48]} 43. Bh6 {[%clk 0:00:57]}  Kd6 {[%clk 0:00:30]} 44. Bf4 {[%clk 0:00:56]}  Kd7 {[%clk 0:00:28]} 45. h5 {[%clk 0:00:55]}  Rf5 {[%clk 0:00:26]} 46. hxg6 {[%clk 0:00:38]}  hxg6 {[%clk 0:00:23]} 47. Rxf5 {[%clk 0:00:28]}  gxf5 {[%clk 0:00:24]} 48. Be5 {[%clk 0:00:28]}  Ke6 {[%clk 0:00:23]} 49. Kf4 {[%clk 0:00:29]}  Bb3 {[%clk 0:00:19]} 50. g4 {[%clk 0:00:27]}  fxg4 {[%clk 0:00:19]} 51. Kxe4 {[%clk 0:00:24]}  Bd1 {[%clk 0:00:20]} 52. Kf4 {[%clk 0:00:23]}  Bf3 {[%clk 0:00:20]} 53. Bg7 {[%clk 0:00:20]}  Kd5 {[%clk 0:00:20]} 54. Ke3 {[%clk 0:00:21]}  Kc4 {[%clk 0:00:21]} 55. Bf8 {[%clk 0:00:21]}  Kb3 {[%clk 0:00:20]} 56. Bc5 {[%clk 0:00:22]}  Kxb2 {[%clk 0:00:20]} 57. Kf4 {[%clk 0:00:22]}  Kb3 {[%clk 0:00:20]} 58. Ke3 {[%clk 0:00:23]}  Kc4 {[%clk 0:00:21]} 59. Bd6 {[%clk 0:00:22]}  Kd5 {[%clk 0:00:22]} 60. Bc5 {[%clk 0:00:23]}  Ke6 {[%clk 0:00:22]} 61. Bf8 {[%clk 0:00:23]}  Kd5 {[%clk 0:00:22]} 62. Bc5 {[%clk 0:00:24]}  Be4 {[%clk 0:00:19]} 63. Bf8 {[%clk 0:00:25]}  Bf3 {[%clk 0:00:19]} 64. Bc5 {[%clk 0:00:25]} 1/2-1/2


[Site "https://www.chess.com"]

[Event "Titled Tuesday Blitz August 22 Late 2023"]
[White "Sivakumar, Shaashwath"]
[Black "rionelG"]
[WhiteFideId "30912156"]
[WhiteElo "2478"]
[BlackElo "2349"]
[Result "0-1"]
[Round "6"]
[TimeControl "180+1"]
[Date "2023.08.22"]
[WhiteClock "0:00:03"]
[BlackClock "0:00:04"]
[Board "126"]

1. d4 {[%clk 0:03:00]}  Nf6 {[%clk 0:02:58]} 2. c4 {[%clk 0:02:58]}  g6 {[%clk 0:02:59]} 3. Nc3 {[%clk 0:02:58]}  Bg7 {[%clk 0:02:59]} 4. e4 {[%clk 0:02:59]}  O-O {[%clk 0:03:00]} 5. Be2 {[%clk 0:02:58]}  d6 {[%clk 0:03:00]} 6. Be3 {[%clk 0:02:58]}  e5 {[%clk 0:02:56]} 7. d5 {[%clk 0:02:59]}  Na6 {[%clk 0:02:55]} 8. g4 {[%clk 0:02:55]}  Nc5 {[%clk 0:02:53]} 9. f3 {[%clk 0:02:54]}  a5 {[%clk 0:02:47]} 10. h4 {[%clk 0:02:52]}  c6 {[%clk 0:02:39]} 11. Qd2 {[%clk 0:02:42]}  cxd5 {[%clk 0:02:39]} 12. cxd5 {[%clk 0:02:39]}  a4 {[%clk 0:02:29]} 13. Nh3 {[%clk 0:02:35]}  Bxg4 {[%clk 0:02:06]} 14. fxg4 {[%clk 0:02:23]}  Nfxe4 {[%clk 0:02:04]} 15. Nxe4 {[%clk 0:02:23]}  Nxe4 {[%clk 0:02:03]} 16. Qb4 {[%clk 0:02:22]}  Ng3 {[%clk 0:01:53]} 17. Rg1 {[%clk 0:02:09]}  Nxe2 {[%clk 0:01:51]} 18. Kxe2 {[%clk 0:02:08]}  Qxh4 {[%clk 0:01:52]} 19. Nf2 {[%clk 0:02:02]}  Qe7 {[%clk 0:01:49]} 20. g5 {[%clk 0:01:56]}  f5 {[%clk 0:01:47]} 21. gxf6 {[%clk 0:01:56]}  Qxf6 {[%clk 0:01:42]} 22. Raf1 {[%clk 0:01:34]}  Qf3+ {[%clk 0:01:07]} 23. Kd2 {[%clk 0:01:33]}  Qxd5+ {[%clk 0:00:56]} 24. Ke2 {[%clk 0:01:30]}  Rac8 {[%clk 0:00:52]} 25. Qxa4 {[%clk 0:00:56]}  Rc4 {[%clk 0:00:40]} 26. Qb3 {[%clk 0:00:56]}  Rfc8 {[%clk 0:00:36]} 27. Rc1 {[%clk 0:00:48]}  b5 {[%clk 0:00:20]} 28. Rgd1 {[%clk 0:00:42]}  Qe6 {[%clk 0:00:19]} 29. Rxc4 {[%clk 0:00:34]}  bxc4 {[%clk 0:00:19]} 30. Qb6 {[%clk 0:00:29]}  c3 {[%clk 0:00:17]} 31. bxc3 {[%clk 0:00:20]}  Qxa2+ {[%clk 0:00:16]} 32. Rd2 {[%clk 0:00:20]}  Qc4+ {[%clk 0:00:17]} 33. Rd3 {[%clk 0:00:18]}  e4 {[%clk 0:00:15]} 34. Nxe4 {[%clk 0:00:18]}  Qxe4 {[%clk 0:00:15]} 35. Qxd6 {[%clk 0:00:17]}  Bh6 {[%clk 0:00:14]} 36. Kd2 {[%clk 0:00:11]}  Bxe3+ {[%clk 0:00:12]} 37. Rxe3 {[%clk 0:00:12]}  Qf5 {[%clk 0:00:11]} 38. Rd3 {[%clk 0:00:08]}  Qf2+ {[%clk 0:00:10]} 39. Kc1 {[%clk 0:00:08]}  Re8 {[%clk 0:00:09]} 40. Qd5+ {[%clk 0:00:08]}  Qf7 {[%clk 0:00:09]} 41. Qd4 {[%clk 0:00:07]}  h5 {[%clk 0:00:09]} 42. Rd1 {[%clk 0:00:06]}  Qa2 {[%clk 0:00:08]} 43. Qf6 {[%clk 0:00:04]}  Qa1+ {[%clk 0:00:07]} 44. Kc2 {[%clk 0:00:04]}  Qa4+ {[%clk 0:00:07]} 45. Kd2 {[%clk 0:00:02]}  Qd7+ {[%clk 0:00:06]} 46. Kc1 {[%clk 0:00:02]}  Qf7 {[%clk 0:00:06]} 47. Qg5 {[%clk 0:00:02]}  Rf8 {[%clk 0:00:06]} 48. Rd6 {[%clk 0:00:02]}  Kg7 {[%clk 0:00:06]} 49. Qe5+ {[%clk 0:00:01]}  Kh7 {[%clk 0:00:06]} 50. Qd4 {[%clk 0:00:02]}  Qf4+ {[%clk 0:00:06]} 51. Qxf4 {[%clk 0:00:01]}  Rxf4 {[%clk 0:00:06]} 52. Kd2 {[%clk 0:00:02]}  h4 {[%clk 0:00:07]} 53. Rd7+ {[%clk 0:00:03]}  Kh6 {[%clk 0:00:07]} 54. Ke3 {[%clk 0:00:04]}  Rg4 {[%clk 0:00:06]} 55. Rd4 {[%clk 0:00:03]}  Rxd4 {[%clk 0:00:05]} 56. Kxd4 {[%clk 0:00:03]}  h3 {[%clk 0:00:04]} 0-1


[Site "https://www.chess.com"]